Cogmind - Beta 15 @@@ ROGUE MODE // 2025.08.28 @ 15:55:55 Player: winnking222 Result: Destroyed by Y-54 Guardian with Gatling Laser Performance ------------- Evolutions (0) 0 Regions Visited (3) 600 Robots Destroyed (35) 175 Value Destroyed (962) 962 Prototype IDs (11) 220 Alien Tech Used (0) 0 Bonus (0) 0 TOTAL SCORE: 1957 Bonus ------- None Cogmind --------- Core Integrity 0/250 Matter 288/300 Energy 36/100 System Corruption 0% Temperature Cool (39) Movement Core (850) Ox16 Location -7/Recycling Parts ------- > --- POWER (1+1) ------ (None) > --- PROPULSION (2) --- (None) > --- UTILITY (2) ------ High-capacity Storage Unit > --- WEAPON (2) ------- Powered Cannon > --- INVENTORY (20) --- Arachnoskeleton Wheel Makeshift Flight Unit High-capacity Storage Unit Seismic Detector Scrap Shield Subdweller Beam Cannon Subdweller Machine Gun Subdweller Shrapnel Launcher Subdweller Shrapnel Launcher Makeshift Sword Shrapnel Trap Shrapnel Trap Peak State ------------ > --- POWER ------------ Subdweller Power Source > --- PROPULSION ------- Light Treads Subdweller Monowheel > --- UTILITY ---------- High-capacity Storage Unit > --- WEAPON ----------- Slug Cannon Dirty Datajack > --- INVENTORY -------- Arachnoskeleton Wheel Makeshift Flight Unit High-capacity Storage Unit Seismic Detector Scrap Shield Subdweller Beam Cannon Powered Cannon Subdweller Machine Gun Subdweller Shrapnel Launcher Subdweller Shrapnel Launcher Makeshift Sword Shrapnel Trap Shrapnel Trap [Rating: 22] Favorites ----------- Power Subdweller Power Source Engine Subdweller Power Source Propulsion Light Treads Treads Light Treads Leg Aluminum Leg Wheel Subdweller Monowheel Utility High-capacity Storage Unit Device Seismic Detector Storage High-capacity Storage Unit Protection Medium Armor Plating Weapon Subdweller Machine Gun Energy Gun EM Pulse Gun Energy Cannon Subdweller Beam Cannon Ballistic Gun Subdweller Machine Gun Ballistic Cannon Slug Cannon Launcher Subdweller Shrapnel Launcher Special Melee Weapon Dirty Datajack Build | -11 -10 -10 -7 ------- Run | Yrd Mat Sub Rec Slots Evolved . | . . . . Power . | . . . . Propulsion . | . . . . Utility . | . . . . Weapon . | . . . . Parts Attached 44 | 7 10 25 2 Power 5 | 1 1 3 . Engine 5 | 1 1 3 . Core . | . . . . Reactor . | . . . . Propulsion 11 | 2 3 6 . Treads 4 | . . 4 . Leg 5 | 2 3 . . Wheel 2 | . . 2 . Hover . | . . . . Flight . | . . . . Utility 10 | 2 3 5 . Device 3 | 1 . 2 . Storage 3 | 1 2 . . Processor . | . . . . Hackware . | . . . . Protection 4 | . 1 3 . Artifact . | . . . . Weapon 18 | 2 3 11 2 Energy Gun 2 | 1 1 . . Energy Cannon 5 | . . 4 1 Ballistic Gun 8 | 1 2 5 . Ballistic Cannon 1 | . . 1 . Launcher 1 | . . 1 . Special Weapon . | . . . . Impact Weapon . | . . . . Slashing Weapon . | . . . . Piercing Weapon . | . . . . Special Melee Weapon 1 | . . . 1 Unidentified Prototypes . | . . . . Parts Lost 15 | . . 7 8 Power 1 | . . . 1 Propulsion 5 | . . 3 2 Utility 4 | . . 3 1 Weapon 5 | . . 1 4 Highest Loss Streak 6 | . . 4 6 To Critical Strikes 1 | . . 1 . Average Backups 14 | 4 15 14 13 Power . | . . . . Propulsion 5 | 2 5 5 3 Utility 3 | . 4 4 3 Weapon 4 | 1 5 4 6 Tool/Special . | . . . . Unused Backups 21 | . 4 8 9 Power . | . . . . Propulsion 6 | . 1 2 3 Utility 8 | . 3 2 3 Weapon 7 | . . 4 3 Tool/Special . | . . . . Average Slot Usage (%) 98 | . 99 98 96 Engine 14 | . 14 14 14 Treads 15 | . . 20 14 Leg 9 | . 28 4 . Wheel 2 | . . 2 14 Device 3 | . 8 1 11 Storage 14 | . 14 14 14 Protection 9 | . 5 11 . Energy Gun 2 | . 9 . . Energy Cannon 6 | . . 7 25 Ballistic Gun 18 | . 18 19 . Peak Build Rating 22 | 7 12 20 22 Average Rating 14 | 5 9 16 18 On Entrance 9 | . 7 12 19 Naked Turns . | . . . . Heaviest Build 63 | 14 58 63 63 Greatest Support 40 | 20 20 40 20 Greatest Overweight (x) 3 | 1 2 3 3 Average Overweight (x) 1 | . 1 1 2 Largest Inventory Capacity 20 | 8 20 20 20 Average Capacity 19 | 7 17 20 20 Most Carried 20 | 5 20 20 20 Average Carried 18 | 4 15 19 19 Final Capacity 20 | 8 20 20 20 Final Carried 20 | 5 19 20 16 Class Distribution -------------------- 56% | Mutant 43% | Scavenger-Mutant Dominant Class ---------------- Mutant | -10/Materials Scavenger-Mutant | -10/Subcaves Scavenger-Mutant | -7/Recycling Resources | -11 -10 -10 -7 ----------- Run | Yrd Mat Sub Rec Matter Collected 1196 | 277 180 739 . Remotely . | . . . . Salvage Created 1205 | 140 646 419 . Parts 75 | 11 38 26 . Haulers Intercepted 2 | . 2 . . Recyclers Shooed 2 | 1 1 . . Parts Field Recycled . | . . . . Retrieved Matter . | . . . . Parts Self-Destructed 12 | . . 12 . Prevented . | . . . . Kills | -11 -10 -10 -7 ------- Run | Yrd Mat Sub Rec Combat Hostiles Destroyed 23 | . 11 12 . Guns 19 | . 9 10 . Cannons 2 | . . 2 . AOE 2 | . 2 . . Classes Destroyed 9 | 2 5 2 . Worker 1 | . 1 . . Tunneler 3 | 3 . . . Hauler 2 | . 2 . . Recycler 2 | 1 1 . . Turret 2 | . . 2 . Watcher 2 | . 2 . . Swarmer 2 | . 2 . . Grunt 9 | . 9 . . Subdweller 12 | . . 12 . Best Kill Streak 6 | 4 6 2 . Combat Bots Only 4 | . 4 2 . Max Kills in Single Turn 1 | 1 1 1 . Gunslinging . | . . . . Exploded 1 | . 1 . . Melee . | . . . . Uniques/NPCs Destroyed . | . . . . Combat | -11 -10 -10 -7 -------- Run | Yrd Mat Sub Rec Hostile Shots Fired 282 | . 46 134 102 Missed 96 | . 14 53 29 Hits 186 | . 32 81 73 Projectile 186 | . 32 81 73 AOE 8 | . . 8 . Critical Strikes 5 | . 1 4 . Damage Taken 2656 | . 341 1751 564 Core 261 | . 38 87 136 Absorbed by Shields . | . . . . Core Remaining (%) 100 | 100 . . . Volleys Fired 169 | 7 47 108 7 Largest 2 | 2 2 2 2 Hottest 160 | 70 70 160 160 Shots Fired 310 | 14 93 195 8 Gun 248 | 14 93 141 . Cannon 58 | . . 50 8 Launcher 4 | . . 4 . Special . | . . . . Kinetic 220 | 7 54 157 2 Thermal 65 | 7 14 38 6 Explosive . | . . . . Electromagnetic 25 | . 25 . . Robot Hit Streak 14 | 6 7 14 3 Robot Miss Streak 5 | 2 5 4 4 Penetration Max . | . . . . Secondary Targets 1 | . 1 . . Max Gunslinging Chain 1 | . 1 . . Shots Hit Robots 152 | 9 57 80 6 Core Hits 60 | 6 29 22 3 Critical Kills 2 | . . 2 . Critical Parts Destroyed 1 | . . . 1 Critical Strikes 7 | . . 5 2 Meltdown 1 | . . 1 . Destroy 6 | . . 4 2 Melee Attacks 2 | . . . 2 Impact . | . . . . Slashing . | . . . . Piercing 2 | . . . 2 Sneak Attacks . | . . . . Combat Hostiles . | . . . . Follow-up Attacks . | . . . . Damage Inflicted 2790 | 101 851 1690 148 Guns 2052 | 101 709 1242 . Cannons 592 | . . 448 144 Explosions 138 | . 138 . . Melee 4 | . . . 4 Ramming 4 | . 4 . . Kinetic 1766 | 25 317 1349 75 Thermal 751 | 76 265 341 69 Explosive . | . . . . Electromagnetic 265 | . 265 . . Impact . | . . . . Slashing . | . . . . Piercing 4 | . . . 4 Highest Corruption . | . . . . Average Corruption . | . . . . Corruption Purged . | . . . . Corruption Blocked . | . . . . Overload Shots . | . . . . Overflow Damage 22 | . . 22 . Projectiles 22 | . . 22 . Explosions . | . . . . Melee . | . . . . Knockbacks 2 | . . 2 . Impact . | . . . . Kinetic 2 | . . 2 . Secondary . | . . . . Self-Inflicted Damage 20 | . . 20 . Shots 1 | . . 1 . Rammed . | . . . . Targets Rammed 2 | . 2 . . Kicked 2 | . 2 . . Crushed . | . . . . Highest Temperature 278 | 70 177 272 278 Average Temperature 64 | 28 55 70 132 Received Heat Transfer 957 | . 165 612 180 Effects 1 | . . . 1 Interference 1 | . . . 1 Siege Activations . | . . . . Martial Activations . | . . . . Shielding Activations . | . . . . Robots Disrupted . | . . . . Combat Hostiles . | . . . . Robots Corrupted . | . . . . Combat Hostiles . | . . . . Parts Fried . | . . . . Impact Corruptions . | . . . . Robots Melted 1 | . . 1 . Combat Hostiles . | . . . . Parts Melted 3 | 1 2 . . Heat Transferred 1310 | 222 570 481 37 Parts Sabotaged . | . . . . Parts Stolen . | . . . . Parts Stripped . | . . . . Power Chain Reactions 2 | . 2 . . Alert | -11 -10 -10 -7 ------- Run | Yrd Mat Sub Rec Maximum Alert Level . | . . . . Low Security (%) 100 | 100 100 . 100 Level 1 . | . . . . Level 2 . | . . . . Level 3 . | . . . . Level 4 . | . . . . Level 5 . | . . . . High Security . | . . . . Max Security . | . . . . Peak Influence 108 | 10 105 . 108 Initial 84 | . . . 84 Average 27 | 1 19 . 78 Influence Increases 830 | 20 331 355 124 Destroy 0b10 Robot/C 260 | . 220 40 . Destroy 0b10 Robot/NC 50 | 20 30 . . Destroy Leader 58 | . 58 . . Successful Hack 47 | . 17 . 30 Select Force Hacks 90 | . . . 90 Destroy Structure 10 | . 6 . 4 Lose Combat Pursuer 315 | . . 315 . Influence Decreases 830 | 20 306 205 299 Entered New Map 104 | . . 13 91 Time Decay 606 | 20 306 150 130 Lost Part 120 | . . 42 78 Squads Dispatched 2 | . 2 . . Investigation . | . . . . Extermination . | . . . . Reinforcement 2 | . 2 . . Assault . | . . . . Garrison . | . . . . Intercept . | . . . . Searches Triggered . | . . . . Construction Impeded . | . . . . Haulers Reinforced . | . . . . Active Scanning Responses . | . . . . Cargo Convoy Interrupts . | . . . . Stealth | -11 -10 -10 -7 --------- Run | Yrd Mat Sub Rec Distress Signals 1 | . 1 . . Communications Jammed . | . . . . Distress Signals . | . . . . Times Spotted 53 | . 22 29 2 Peak Tracking Total 4 | . 4 3 2 Tactical Retreats 8 | . . 8 . Traps | -11 -10 -10 -7 ------- Run | Yrd Mat Sub Rec Traps Triggered . | . . . . Indirectly . | . . . . Trap Hack Attempts . | . . . . Triggered . | . . . . Disarmed . | . . . . Reprogrammed . | . . . . Reused . | . . . . Traps Extracted . | . . . . Installed . | . . . . Triggered . | . . . . Most Traps Carried 2 | . . 2 2 Machines | -11 -10 -10 -7 ---------- Run | Yrd Mat Sub Rec Machines Disabled 1 | . . 1 . Max in Single Turn 1 | . . 1 . Machines Repaired . | . . . . Machines Dismantled . | . . . . Machines Sabotaged . | . . . . Overloaded Fab Kills . | . . . . Hacking | -11 -10 -10 -7 --------- Run | Yrd Mat Sub Rec Machines Accessed 13 | . 5 2 6 Terminals 8 | . 5 . 3 Fabricators . | . . . . Repair Stations . | . . . . Recycling Units 3 | . . . 3 Scanalyzers . | . . . . Garrison Access . | . . . . Total Hacks 24 | . 10 4 10 Successful 18 | . 9 4 5 Failed 6 | . 1 . 5 Catastrophic 1 | . . . 1 Database Lockouts . | . . . . Manual 18 | . 9 . 9 Terminals 17 | . 10 . 7 Fabricators . | . . . . Repair Stations . | . . . . Recycling Units 3 | . . . 3 Scanalyzers . | . . . . Garrison Access . | . . . . Terminal Hacks 6 | . 1 4 1 Record 3 | . . 3 . Garrison Index 1 | . . . 1 Hauler Manifests 1 | . 1 . . Proto ID Catalog 1 | . . 1 . Fabricator Hacks . | . . . . Repair Station Hacks . | . . . . Recycling Unit Hacks . | . . . . Scanalyzer . | . . . . Garrison Access Hacks . | . . . . Unauthorized Hacks 12 | . 8 . 4 Terminals 9 | . 8 . 1 Botnet 4 | . 3 . 1 Skim 5 | . 5 . . Fabricators . | . . . . Repair Stations . | . . . . Recycling Units 3 | . . . 3 Tunnel 3 | . . . 3 Scanalyzers . | . . . . Garrison Access . | . . . . Data Cores Recovered . | . . . . Used . | . . . . Hacking Detections 4 | . 1 . 3 Full Trace Events 2 | . . . 2 Feedback Events . | . . . . Feedback Blocked . | . . . . Robot Schematics Acquired . | . . . . Robots Built . | . . . . Authchips . | . . . . Time . | . . . . Total Robot Build Rating . | . . . . Part Schematics Acquired . | . . . . Parts Built . | . . . . Authchips . | . . . . Time . | . . . . Total Part Build Rating . | . . . . Parts Repaired . | . . . . Time . | . . . . Parts Recycled . | . . . . Recycled Matter . | . . . . Retrieved Matter . | . . . . Retrieved Components . | . . . . Parts Scanalyzed . | . . . . Part Schematics Acquired . | . . . . Parts Damaged . | . . . . Bothacking | -11 -10 -10 -7 ------------ Run | Yrd Mat Sub Rec Used RIF Installer . | . . . . Robots Hacked . | . . . . Non-combat . | . . . . Combat . | . . . . Robot Hacks Applied . | . . . . Relay Couplers Released . | . . . . Fabnet Peak Effective % . | . . . . Robots Rewired . | . . . . Allies Hacked . | . . . . Hacks Repelled . | . . . . Allies | -11 -10 -10 -7 -------- Run | Yrd Mat Sub Rec Total Allies . | . . . . Largest Group . | . . . . Highest-Rated Group . | . . . . Highest-Rated Ally . | . . . . Total Orders . | . . . . Ally Attacks . | . . . . Total Damage . | . . . . Kills . | . . . . Allies Corrupted . | . . . . Allies Melted . | . . . . Intel | -11 -10 -10 -7 ------- Run | Yrd Mat Sub Rec Active Infowar (turns) 1481 | 31 863 357 230 Optics 587 | . . 357 230 Seismic 894 | 31 863 . . Robot Analysis Total . | . . . . Derelict Logs Recovered . | . . . . Drone Launches . | . . . . Drone Recoveries . | . . . . Exploration | -11 -10 -10 -7 ------------- Run | Yrd Mat Sub Rec Turns Passed 6667 | 113 1488 4787 279 Spaces Moved 2792 | 64 575 1980 173 Core 13 | 13 . . . Treads 1185 | . . 1185 . Legs 903 | 51 575 277 . Wheels 691 | . . 518 173 Hover . | . . . . Flight . | . . . . Fastest Speed 50 | 50 120 130 130 Average Speed 209 | 107 209 219 139 Slowest Speed 400 | 120 260 400 140 Overloaded Moves . | . . . . Propulsion Burnouts . | . . . . Robots Hopped . | . . . . Potential Cave-ins 4 | . . 4 . Cave-ins Triggered . | . . . . Exploration Rate (%) 58 | 5 92 93 42 Regions Visited 3 Branch Regions 2 Pre-discovered Areas 6 | . 2 1 3 Known Exits Taken . | . . . . Unknown Exits Taken 3 | 1 1 1 . Scrap Searched 8 | . . 8 . Spaces Dug 25 | . . 25 . Terrain Destroyed 83 | . 6 73 4 Melee . | . . . . Projectile 19 | . . 15 4 AOE 64 | . 6 58 . Terrain Rammed . | . . . . Walls Destroyed . | . . . . Machines Disabled . | . . . . Actions | -11 -10 -10 -7 --------- Run | Yrd Mat Sub Rec Total 3306 | 95 776 2232 203 Wait 196 | 7 104 67 18 Move 2789 | 63 574 1979 173 Hop . | . . . . Pick Up 62 | 11 26 25 . Fast Attach 4 | 1 . 3 . Attach 20 | 6 1 10 3 Detach . | . . . . Swap 23 | . 9 14 . Drop 39 | . 13 26 . Fire 169 | 7 47 108 7 Melee 2 | . . . 2 Ram . | . . . . Kick 2 | . 2 . . Crush . | . . . . Escape Stasis . | . . . . Rewire . | . . . . Trap . | . . . . Miscellaneous . | . . . . Route ------- -11/Scrapyard -10/Materials (discovered 5 exits: [*Mat x3] / [*Min] / *Sub) -10/Subcaves (discovered 3 exits: [*Mat x2] / *Rec) -7/Recycling (discovered 2 exits: Fac / Scr) History --------- Turn | Location | Event 14 | -11/Scrapyard | Discovered new exit (range 16) 114 | -11/Scrapyard | Entered Materials 314 | -10/Materials | Build established: Mutant 369 | -10/Materials | Discovered new exit (range 14) 463 | -10/Materials | Discovered new exit (range 16) 653 | -10/Materials | Discovered new exit (range 9) 733 | -10/Materials | Loaded intel: 11 trap records 859 | -10/Materials | Learned location of 1 exit from Recycling 906 | -10/Materials | Learned location of 1 exit from Recycling 964 | -10/Materials | Learned Storage emergency access door positions 996 | -10/Materials | Learned location of Mines (-8) 1039 | -10/Materials | Loaded intel: 8 terminal locations 1090 | -10/Materials | Learned 4 Subcaves zone layouts 1522 | -10/Materials | Discovered new exit (range 16) 1538 | -10/Materials | Discovered new exit (range 9) 1602 | -10/Materials | Entered Subcaves 2222 | -10/Subcaves | A Subdweller sparked back to life 2222 | -10/Subcaves | A Subdweller sparked back to life 2330 | -10/Subcaves | Found Prototype Leg 2637 | -10/Subcaves | Discovered new exit (range 9) 2758 | -10/Subcaves | Visited 4L-MR0's lab 2769 | -10/Subcaves | Identified Arachnoskeleton 2788 | -10/Subcaves | Found Powered Cannon 3098 | -10/Subcaves | Shifting Twisted Machinery released Mak. Flight Unit 3199 | -10/Subcaves | Learned location of Zion (-6) 3199 | -10/Subcaves | Met a Zionite searching for "candidates" 3651 | -10/Subcaves | Build established: Scavenger-Mutant 3765 | -10/Subcaves | Shifting Twisted Machinery released Sub. Beam Cannon 3776 | -10/Subcaves | Discovered new exit (range 13) 4229 | -10/Subcaves | Shifting Twisted Machinery released Sub. Power Source 4996 | -10/Subcaves | Shifting Twisted Machinery released Mak. Sword 5011 | -10/Subcaves | Shifting Twisted Machinery released Sub. Shrapnel Launcher 5022 | -10/Subcaves | Discovered new exit (range 8) 5124 | -10/Subcaves | A swath of the cavern ceiling suddenly collapsed 5461 | -10/Subcaves | Lost 4 parts (2n1u1w) 5628 | -10/Subcaves | Visited Clippyterm 5701 | -10/Subcaves | Build established: Mutant 6096 | -10/Subcaves | Build established: Scavenger-Mutant 6389 | -10/Subcaves | Entered Recycling 6390 | -7/Recycling | Identified exit to Factory 6390 | -7/Recycling | Identified exit to Scraptown 6655 | -7/Recycling | Core integrity fell below 50% 6666 | -7/Recycling | Core integrity fell below 20% 6667 | -7/Recycling | Attached Powered Cannon, gained temporary slot: Power 6668 | -7/Recycling | Destroyed by Y-54 Guardian with Gatling Laser Last Messages --------------- 06625_ Overheating: System interference. 06625_ Sub. Beam Cannon temporarily disabled. 06625_ Sub. Beam Cannon destroyed. 06652_ Splicing Y-54 Guardian... Initiated overload sequence, T-4 to critical power. 06656_ Y-54 Guardian Imp. Deuterium Engine critical detonation. 06656_ Matter Filter disabled. 06657_ Splicing Y-54 Guardian... Initiated overload sequence, T-4 to critical power. 06658_ Broken Sub. Beam Cannon destroyed. 06661_ Y-54 Guardian Imp. Deuterium Engine critical detonation. 06661_ Lgt. Treads destroyed. 06661_ Sub. Monowheel destroyed. 06662_ Y-54 Guardian suffers critical hit (Destroy). 06662_ Destroyed Lgt. Treads. 06664_ Y-54 Guardian suffers critical hit (Destroy). 06664_ Slug Cannon destroyed. 06664_ Dirty Datajack destroyed. 06667_ Core temporarily expanded with Power slot. 06667_ Broken Sub. Power Source destroyed. Map ----- +----------------------------------------------------+ | ???? ???????????????????????????????# # # | | ??? ??????######??????????????????# #+######## | | ??? ??????# %! #??????????????????# # #??????? | | ??# ?????# ! #????????###########+# #??????? | | ??#= ?????#! #????????# # #??????? | | ??# ????# #????????# # #??????? | | ??# ????# #????????# # #??????? | | ??#[ ???# ! #????????# # #??????? | | ??##+######???# #????????# # #??????? | | ??????????????# [ !#????##### # #??????? | | ??????????????#! #????#"""# # #??????? | | ??????????????#!! #?####"Y"##+######+### #???? # | | ??????????#???# % #?# # # | | ??????????# ??+ !* #?# + # | | ??????????# ?? #?# # # | | ???# ###### ###+#########+#######"Y"#####???? # | | ?### + #?#"""#??????????? | | # #?#####??????????? | | ?### " %%""""" ###??????????????? | | ???# ; %%""""" ""#??????????????? | | ???# ###;; %%""""" T"#??????????????? | | ???" #??#; %%""""" ""#??????????????? | | ???" #??#;Y%%""""" ###??????????????? | | ???# ##%## #????????????????? | | ???# # ;;;;;########????????????????? | | ???### "#"### Y @ #??????????????????? | | ?????##?#???# #??????????????????? | | ????????????# % #??????????????????? | | ????????????# r#??????????????????? | | ????????????# r ?????????????????? | | ????????????# ########+#????????????????? | | ????????????# ????????? ???????????????? | | ????????????+ ?????????? #??????????????? | | ????????????# ###???????????#??????????????? | | ????????????####### ?????????????????????????????? | | ??????????????????# ?????????????????????????????? | | ??????????????????#??????????????????????????????? | | ?????????????????????????????????????????????????? | | ?????????????????????????????????????????????????? | | ?????????????????????????????????????????????????? | | ?????????????????????????????????????????????????? | | ?????????????????????????????????????????????????? | | ?????????????????????????????????????????????????? | | ?????????????????????????????????????????????????? | | ?????????????????????????????????????????????????? | | ?????????????????????????????????????????????????? | | ?????????????????????????????????????????????????? | | ?????????????????????????????????????????????????? | | ?????????????????????????????????????????????????? | | ?????????????????????????????????????????????????? | +----------------------------------------------------+ Best States ------------- Heat Dissipation 25 Energy Generation 15 Energy Capacity 250 Matter Stores 300 Matter Capacity 300 Sight Range 21 Terrain Scan Density 10 Armor Coverage 225 Evasion (%) 55 Recoil Reduction 2 Item Schematics ----------------- None Robot Schematics ------------------ None Fabricated ------------ Nothing Repaired ---------- Nothing Alien Tech Used ----------------- None Achievements -------------- None Challenges ------------ None Game ------ Seed CryofiberBlanketStrikerail Manual? 0 Play Time 00:28:51 Cumulative 151.9 hours Start 2025.08.28 @ 15:29:19 End 2025.08.28 @ 15:55:55 Sessions 1 Manual Loads 0 Difficulty Rogue Special Mode None Game No. 215 Rogue 215 Adventurer 0 Explorer 0 Win Type - Total 1 Types 1/0/0/0/0/0/0/0/0/0 Lore% 71 Gallery% 64 Achievement% 55 Wizard Run 0 Options --------- Layout 0 ASCII 0 Keyboard 0 Movement Mouse Keybinds 0 Fullscreen 1 Font 16/SmallcapsGlow Map View 75x55 Zoom Use 0% Tactical HUD 1 Map Filters NONE Filters NONE Steam 1 RUN: 7b877a81-6a75-4abb-b6a2-f9357134fa74